bitfinex/quotes_SOLUSD_20250907
["timestamp","ask_amount","ask_price","bid_price","bid_amount"]
[1757272725610,0.67,202.57,202.56,26.0]
[1757272727928,6.64577053,202.59,202.54,2.94912318]
[1757272728127,0.67,202.57,202.54,26.0]
[1757272728439,38.52,202.56,202.55,26.0]
[1757272729106,39.19,202.56,202.55,26.0]
[1757272729918,38.52,202.56,202.55,26.0]
[1757272731336,38.52,202.56,202.54,7.88641539]
[1757272731709,38.52,202.56,202.55,26.0]
[1757272732732,39.19,202.56,202.55,26.0]
[1757272733031,39.19,202.56,202.53,2.94912318]
[1757272733329,38.52,202.56,202.54,26.0]
[1757272733645,0.67,202.59,202.55,3.65912318]
[1757272733845,38.48,202.56,202.55,3.65912318]
[1757272734212,38.48,202.56,202.55,2.94912318]
[1757272735718,38.48,202.56,202.55,7.88617575]
[1757272739632,38.48,202.56,202.55,4.93705257]
[1757272740215,38.48,202.56,202.54,22.70885517]
[1757272740416,0.03,202.6,202.57,26.0]
[1757272740616,0.03,202.6,202.59,2.94912318]
[1757272741518,0.03,202.6,202.59,8.59520097]
[1757272741938,0.03,202.6,202.59,7.88520097]
[1757272744339,0.03,202.6,202.59,4.93607779]
[1757272744637,0.03,202.6,202.59,7.88520097]
[1757272746636,0.03,202.6,202.59,4.93607779]
[1757272746836,0.03,202.6,202.59,7.88520097]
[1757272747036,0.03,202.6,202.59,8.57520097]
[1757272747626,0.03,202.6,202.59,23.39404065]
[1757272748243,0.03,202.6,202.59,20.44491747]
[1757272748443,0.03,202.6,202.59,23.39404065]
[1757272749630,0.68,202.6,202.59,19.75491747]
[1757272749824,0.68,202.6,202.59,7.88520097]
[1757272750231,0.68,202.6,202.59,4.93607779]
[1757272750629,0.68,202.6,202.58,7.88537884]
[1757272750830,0.03,202.6,202.57,48.70590474]
[1757272751053,0.03,202.6,202.59,2.94912318]
[1757272752438,0.03,202.6,202.59,7.88520097]
[1757272753651,0.03,202.6,202.59,2.94912318]
[1757272753846,0.03,202.6,202.58,2.94912318]
[1757272755655,0.03,202.6,202.58,7.88540588]
[1757272756450,0.68,202.6,202.58,7.88540588]
[1757272757258,0.68,202.6,202.58,2.94912318]
[1757272757855,0.68,202.6,202.59,2.94912318]
[1757272758036,0.68,202.6,202.58,2.94912318]
[1757272759766,0.65,202.59,202.56,40.82103599]
[1757272760054,0.65,202.59,202.57,28.94912318]
[1757272761561,0.65,202.59,202.58,26.0]
[1757272762567,0.65,202.59,202.57,2.94912318]
[1757272766139,0.65,202.58,202.55,40.82176823]
[1757272766345,0.65,202.57,202.55,30.60839201]
[1757272766547,0.65,202.57,202.55,26.0]
[1757272766757,38.99,202.57,202.55,30.60839201]
[1757272766942,38.34,202.57,202.55,30.60839201]
[1757272768263,38.99,202.57,202.55,30.60839201]
[1757272768463,38.99,202.57,202.55,26.0]
[1757272770366,0.65,202.56,202.55,26.0]
[1757272773262,0.65,202.56,202.53,4.60839201]
[1757272773649,38.34,202.57,202.53,4.60839201]
[1757272773968,0.65,202.56,202.53,4.60839201]
[1757272774472,0.65,202.56,202.53,9.54580652]
[1757272775968,0.69,202.55,202.53,9.54580652]
[1757272776880,0.69,202.56,202.53,9.54580652]
[1757272777643,38.86470663,202.57,202.53,9.54580652]
[1757272777974,0.69,202.55,202.53,9.54580652]
[1757272779251,0.69,202.54,202.52,30.60839201]
[1757272779452,38.26,202.53,202.52,26.0]
[1757272781268,38.95,202.53,202.52,26.0]
[1757272781475,38.95,202.53,202.52,40.82616324]
[1757272786676,38.95,202.53,202.52,14.82616324]
[1757272786863,62.09152613,202.53,202.52,14.82616324]
[1757272787263,13.59559401,202.52,202.51,0.12]
[1757272787575,14.09030064,202.52,202.51,14.94616324]
[1757272787776,14.78030064,202.52,202.51,14.94616324]
[1757272788776,19.71808456,202.52,202.51,14.94616324]
[1757272788957,19.71808456,202.52,202.51,0.12]
[1757272789467,24.32647657,202.52,202.51,0.12]
[1757272801865,13.59559401,202.52,202.51,5.39839201]
[1757272802079,51.75559401,202.52,202.51,5.39839201]
[1757272802785,51.75559401,202.52,202.51,20.2274867]
[1757272804476,38.16,202.52,202.51,20.2274867]
[1757272804683,38.16,202.52,202.51,25.16551445]
[1757272805976,0.03,202.53,202.51,25.16551445]
[1757272806290,38.2,202.52,202.51,5.05802775]
[1757272806679,38.2,202.52,202.51,5.72802775]
[1757272807383,0.03,202.53,202.51,10.33641976]
[1757272807585,0.03,202.53,202.52,31.27839201]
[1757272808992,0.03,202.53,202.52,31.60778392]
[1757272809190,0.03,202.53,202.52,51.04014134]
[1757272811588,0.03,202.53,202.52,50.37014134]
[1757272811805,0.03,202.53,202.52,51.04014134]
[1757272812787,0.73,202.53,202.52,50.37014134]
[1757272812992,0.73,202.53,202.52,51.04014134]
[1757272813769,1.42,202.53,202.52,45.43235742]
[1757272813969,1.42,202.53,202.52,40.82396541]
[1757272814189,0.73,202.53,202.52,45.43235742]
[1757272816598,0.73,202.53,202.52,50.37014134]
[1757272816795,38.87,202.53,202.52,51.04014134]
[1757272818409,0.73,202.53,202.52,51.04014134]
[1757272820912,0.73,202.53,202.52,50.37014134]
[1757272821402,0.73,202.53,202.52,51.04014134]
[1757272822189,0.03,202.53,202.52,51.04014134]
[1757272828320,0.03,202.53,202.52,49.38005378]
[1757272829219,0.03,202.53,202.52,46.43174933]
[1757272829410,0.03,202.53,202.52,49.38005378]
[1757272835229,0.03,202.53,202.52,48.71005378]
[1757272835730,2.73,202.53,202.52,48.71005378]
[1757272836927,0.03,202.53,202.52,48.71005378]
[1757272838429,0.03,202.53,202.52,49.43005378]
[1757272841233,0.03,202.53,202.52,48.71005378]
[1757272846729,0.72,202.53,202.52,48.71005378]
[1757272846936,3.42,202.53,202.52,48.71005378]
[1757272847321,0.72,202.53,202.52,48.71005378]
[1757272848532,0.03,202.53,202.52,48.71005378]
[1757272851733,0.72,202.53,202.52,48.71005378]
[1757272852815,1.06536572,202.53,202.52,48.71005378]
[1757272862139,1.06536572,202.53,202.52,40.82396541]
[1757272862441,1.06536572,202.53,202.52,43.77226986]
[1757272863341,1.06536572,202.53,202.52,17.77226986]
[1757272863521,60.58680429,202.53,202.52,14.10396541]
[1757272863847,13.59559401,202.52,202.51,0.12]
[1757272864016,17.03860509,202.52,202.51,0.12]
[1757272864340,17.30860509,202.52,202.51,0.12]
[1757272864825,22.24638901,202.52,202.51,0.12]
[1757272870729,19.02808456,202.52,202.51,0.12]
[1757272870935,52.15030064,202.52,202.51,0.12]
[1757272871550,0.73,202.53,202.51,3.78830445]
[1757272871736,38.79,202.53,202.52,3.66830445]
[1757272872433,38.79,202.53,202.52,12.39461712]
[1757272874050,38.09,202.53,202.52,12.39461712]
[1757272877845,51.68559401,202.53,202.52,8.72631267]
[1757272878167,51.68559401,202.53,202.46,0.12]
[1757272878168,13.59559401,202.48,202.46,0.12]
[1757272878332,26.0,202.49,202.46,0.12]
[1757272878333,55.61860509,202.47,202.46,0.12]
[1757272878531,55.64860509,202.47,202.46,0.12]
[1757272878929,14.12030064,202.47,202.46,0.12]
[1757272879169,52.67030064,202.47,202.46,0.84]
[1757272879542,55.37030064,202.47,202.46,0.84]
[1757272881436,55.37030064,202.47,202.45,3.06830445]
[1757272881437,13.59559401,202.46,202.45,1e-08]
[1757272881634,16.54389846,202.46,202.45,1e-08]
[1757272881841,55.42389846,202.46,202.45,1e-08]
[1757272882046,62.341434,202.46,202.45,1e-08]
[1757272883149,59.39312955,202.46,202.45,1e-08]
[1757272883347,62.341434,202.46,202.45,1e-08]
[1757272884167,194.741434,202.46,202.45,1e-08]
[1757272884463,194.741434,202.46,202.42,1e-08]
[1757272884464,42.54389846,202.43,202.42,1e-08]
[1757272884650,81.93860509,202.43,202.42,1e-08]
[1757272885755,86.87858434,202.43,202.42,1e-08]
[1757272888347,88.54902798,202.43,202.42,1e-08]
[1757272888689,90.52780559,202.43,202.42,1e-08]
[1757272897566,90.52780559,202.43,202.4,0.12]
[1757272897757,18.2143421,202.41,202.4,0.12]
[1757272897959,57.50904873,202.41,202.4,0.12]
[1757272898173,59.48792423,202.41,202.4,0.12]
[1757272899381,59.8096435,202.41,202.4,0.8]
[1757272899569,64.42839159,202.41,202.4,0.12]
[1757272899961,62.44951609,202.41,202.4,0.12]
[1757272900664,64.42839159,202.41,202.4,0.12]
[1757272901462,62.44951609,202.41,202.4,0.12]
[1757272905582,23.64951609,202.41,202.4,0.8]
[1757272905884,62.38951609,202.41,202.4,0.8]
[1757272906257,19.030768,202.41,202.4,0.8]
[1757272906473,62.36951609,202.41,202.4,0.8]
[1757272908160,171.99559401,202.4,202.39,0.12]
[1757272908464,13.59559401,202.37,202.33,0.12]
[1757272908675,26.0,202.38,202.33,0.12]
[1757272908676,18.2143421,202.34,202.33,0.12]
[1757272908878,57.46904873,202.34,202.33,0.12]
[1757272910374,62.41122526,202.34,202.33,0.12]
[1757272911466,57.79247717,202.34,202.33,0.8]
[1757272911661,62.41122526,202.34,202.33,0.8]
[1757272911875,72.7487569,202.34,202.33,1e-08]
[1757272912187,39.59559401,202.32,202.31,1e-08]
[1757272912368,98.74924545,202.32,202.31,1e-08]
[1757272912566,98.25453882,202.32,202.31,1e-08]
[1757272912767,102.87328691,202.32,202.31,1e-08]
[1757272913186,93.63579073,202.32,202.31,1e-08]
[1757272913392,98.25453882,202.32,202.31,1e-08]
[1757272913689,102.87328691,202.32,202.31,1e-08]
[1757272914778,14.68489099,202.31,202.3,0.1]
[1757272914984,34.75462544,202.31,202.3,0.1]
[1757272915691,39.69753483,202.31,202.3,0.1]
[1757272916790,52.05480832,202.31,202.27,0.68]
[1757272916991,13.59559401,202.27,202.21,0.12]
[1757272917191,4.61874809,202.22,202.21,0.12]
[1757272917391,43.39874809,202.22,202.21,0.12]
[1757272917598,43.39874809,202.22,202.21,0.8]
[1757272920793,38.78,202.22,202.21,0.8]
[1757272920982,43.39874809,202.22,202.21,0.8]
[1757272921177,38.78,202.22,202.21,0.8]
[1757272929706,61.93945138,202.22,202.21,0.8]
[1757272930704,61.93945138,202.22,202.21,0.12]
[1757272932514,62.43415801,202.22,202.21,0.12]
[1757272939114,57.81540992,202.22,202.21,0.12]
[1757272939312,62.43415801,202.22,202.21,0.12]
[1757272942219,19.03540992,202.22,202.21,0.12]
[1757272942427,14.09030064,202.22,202.21,0.81]
[1757272942637,13.59559401,202.22,202.21,0.81]
[1757272942815,38.6,202.22,202.21,5.42874809]
[1757272946738,38.6,202.22,202.21,10.37394244]
[1757272948324,38.6,202.22,202.21,8.7137981]
[1757272952140,38.6,202.22,202.21,0.12]
[1757272952528,39.09470663,202.22,202.21,0.12]
[1757272953051,57.63540992,202.22,202.21,0.12]
[1757272957548,66.05827843,202.22,202.21,0.12]
[1757272957850,72.22573697,202.22,202.21,0.12]
[1757272959038,72.22573697,202.22,202.21,1e-08]
[1757272959245,66.47812,202.22,202.21,1e-08]
[1757272959440,78.1098433,202.22,202.21,1e-08]
[1757272959629,39.59559401,202.2,202.19,1e-08]
[1757272959862,93.48331939,202.2,202.19,1e-08]
[1757272960034,99.65077793,202.2,202.19,1e-08]
[1757272960353,99.1560713,202.2,202.19,1e-08]
[1757272960846,104.06212346,202.2,202.19,1e-08]
[1757272961024,95.18631221,202.2,202.19,1e-08]
[1757272961226,95.68101884,202.2,202.19,1e-08]
[1757272961427,86.5945028,202.2,202.19,1e-08]
[1757272961627,47.9945028,202.2,202.19,1e-08]
[1757272961833,86.5945028,202.2,202.19,1e-08]
[1757272962646,60.5945028,202.2,202.19,0.71000001]
[1757272963732,60.5945028,202.2,202.19,1e-08]
[1757272965842,21.9945028,202.2,202.19,0.71000001]
[1757272966042,60.07979617,202.2,202.19,0.71000001]
[1757272966844,60.07979617,202.2,202.19,1e-08]
[1757272968240,13.59559401,202.2,202.19,0.71000001]
[1757272968448,52.15559401,202.2,202.19,0.71000001]
[1757272968647,52.65030064,202.2,202.19,0.71000001]
[1757272971645,52.15559401,202.2,202.19,0.71000001]
[1757272972551,38.56,202.2,202.19,0.71000001]
[1757272973742,38.59,202.2,202.19,0.71000001]
[1757272983176,39.08470663,202.2,202.19,0.71000001]
[1757272986974,38.59,202.2,202.19,0.71000001]
[1757272991884,60.08979617,202.2,202.19,1e-08]
[1757272992059,60.5845028,202.2,202.19,1e-08]
[1757272992976,57.62589905,202.2,202.19,1e-08]
[1757272993279,60.5845028,202.2,202.19,1e-08]
[1757272994183,52.56030064,202.2,202.19,0.66000001]
[1757272994556,52.56030064,202.2,202.19,1e-08]
[1757272995175,57.50589905,202.2,202.19,1e-08]
[1757272997864,60.4645028,202.2,202.19,1e-08]
[1757273010283,57.50589905,202.2,202.19,1e-08]
[1757273010469,62.13362146,202.2,202.19,1e-08]
[1757273026843,66.76134387,202.2,202.19,1e-08]
[1757273027351,68.74237549,202.2,202.19,1e-08]
[1757273031450,39.59559401,202.18,202.17,0.1]
[1757273031651,83.01802305,202.18,202.17,0.1]
[1757273032250,84.99925092,202.18,202.17,0.1]
[1757273032657,89.94533856,202.18,202.17,0.1]
[1757273032954,13.59559401,202.17,202.16,0.12]
[1757273033155,18.22331642,202.17,202.16,0.12]
[1757273033658,20.20454428,202.17,202.16,0.12]
[1757273034046,25.15087657,202.17,202.16,0.12]
[1757273042285,25.15087657,202.17,202.16,0.78]
[1757273048685,63.45087657,202.17,202.16,0.78]
[1757273049972,63.45087657,202.17,202.16,1e-08]
[1757273050588,25.15087657,202.17,202.16,1e-08]
[1757273050886,63.45087657,202.17,202.16,0.67000001]
[1757273052499,63.45087657,202.17,202.16,1e-08]
[1757273052681,63.45087657,202.17,202.14,0.12]
[1757273052996,18.22331642,202.15,202.14,0.12]
[1757273053175,56.52331642,202.15,202.14,0.12]
[1757273054092,61.47013808,202.15,202.14,0.12]
[1757273054480,61.47013808,202.15,202.14,0.79]
[1757273058492,18.54241567,202.15,202.14,0.79]
[1757273058684,56.84241567,202.15,202.14,0.79]
[1757273062291,57.3371223,202.15,202.14,0.79]
[1757273064099,61.96484471,202.15,202.14,0.79]
[1757273065676,61.47013808,202.15,202.14,0.79]
[1757273067304,61.47013808,202.15,202.14,0.12]
[1757273067795,61.96484471,202.15,202.14,0.12]
[1757273068693,61.47013808,202.15,202.14,0.12]
[1757273069197,62.14013808,202.15,202.14,0.12]
[1757273070001,61.47013808,202.15,202.14,0.12]
[1757273070204,61.96484471,202.15,202.14,0.12]
[1757273072504,60.30075941,202.15,202.14,0.12]
[1757273077802,19.0371223,202.15,202.14,0.82]
[1757273078009,56.82241567,202.15,202.14,0.82]
[1757273078197,57.3171223,202.15,202.14,0.82]
[1757273078784,52.37030064,202.15,202.14,0.82]
[1757273080294,57.3171223,202.15,202.14,0.82]
[1757273080696,56.82241567,202.15,202.14,0.82]
[1757273081711,57.3171223,202.15,202.14,0.82]
[1757273088294,57.3171223,202.15,202.14,0.12]
[1757273088295,60.28075941,202.15,202.14,0.12]
[1757273088495,60.94075941,202.15,202.14,0.12]
[1757273088696,60.28075941,202.15,202.14,0.12]
[1757273089029,60.28075941,202.15,202.14,0.82]
[1757273090105,59.78605278,202.15,202.14,0.82]
[1757273091921,57.3171223,202.15,202.14,0.82]
[1757273095424,52.37030064,202.15,202.14,0.82]
[1757273096223,52.35030064,202.15,202.14,0.82]
[1757273096414,51.85559401,202.15,202.14,0.82]
[1757273097023,51.85559401,202.15,202.14,3.28093352]
[1757273099840,55.15559401,202.15,202.14,3.28093352]
[1757273101639,63.06605278,202.15,202.14,0.12]
[1757273101936,63.72605278,202.15,202.14,0.12]
[1757273104031,63.06605278,202.15,202.14,0.12]
[1757273105016,60.10241567,202.15,202.14,0.12]
[1757273105223,55.15559401,202.15,202.14,0.83]
[1757273105726,55.15559401,202.15,202.14,4.23093352]
[1757273105917,41.56,202.15,202.14,4.23093352]
[1757273108229,41.56,202.15,202.14,3.52093352]
[1757273108739,41.56,202.15,202.14,4.23093352]
[1757273109136,63.06605278,202.15,202.14,3.52093352]
[1757273109324,63.06605278,202.15,202.14,0.12]
[1757273109736,60.10241567,202.15,202.14,0.83]
[1757273110335,60.10241567,202.15,202.14,5.18093352]
[1757273110841,60.10241567,202.15,202.14,0.12]
[1757273114142,55.15559401,202.15,202.14,0.83]
[1757273114316,55.15559401,202.15,202.14,6.84093352]
[1757273115728,3.3,202.15,202.14,6.84093352]
[1757273116036,41.54,202.15,202.14,6.84093352]
[1757273118235,41.54,202.15,202.14,9.80457063]
[1757273118544,3.3,202.15,202.14,9.80457063]
[1757273118742,41.54,202.15,202.14,9.80457063]
[1757273118920,3.3,202.15,202.14,9.80457063]
[1757273119116,41.54,202.15,202.14,9.80457063]
[1757273119737,3.3,202.15,202.14,9.80457063]
[1757273119938,41.54,202.15,202.14,9.80457063]
[1757273120554,3.3,202.15,202.14,9.80457063]
[1757273120737,41.54,202.15,202.14,9.80457063]
[1757273121424,41.54,202.15,202.14,6.84093352]
[1757273121759,3.3,202.15,202.14,6.84093352]
[1757273122050,41.54,202.15,202.14,6.84093352]
[1757273122355,3.3,202.15,202.14,6.84093352]
[1757273122645,41.54,202.15,202.14,6.84093352]
[1757273127855,3.3,202.15,202.14,14.75163701]
[1757273128027,1.08,202.15,202.14,14.75163701]
[1757273128221,0.03,202.16,202.14,14.75163701]
[1757273128422,0.03,202.16,202.15,3.45831927]
[1757273128933,0.03,202.16,202.15,14.53631917]
[1757273129137,0.03,202.16,202.15,44.24631917]
[1757273129535,0.03,202.16,202.15,49.19314083]
[1757273129941,0.03,202.17,202.15,49.19314083]
[1757273130122,0.03,202.17,202.16,2.96363711]
[1757273130738,0.03,202.17,202.16,17.81107964]
[1757273131247,0.03,202.2,202.19,26.0]
[1757273131435,0.03,202.2,202.19,31.92727422]
[1757273132036,0.03,202.2,202.19,33.90673729]
[1757273132251,38.25,202.23,202.19,33.90673729]
[1757273132539,38.25,202.23,202.2,9.24278686]
[1757273132922,38.25,202.23,202.2,24.08875989]
[1757273134740,38.25,202.23,202.2,29.0343583]
[1757273134741,0.03,202.23,202.2,29.0343583]
[1757273135544,0.03,202.23,202.2,29.52891814]
[1757273137840,0.03,202.23,202.21,4.62139343]
[1757273138033,0.03,202.25,202.23,26.0]
[1757273138239,0.03,202.3,202.24,5.11585545]
[1757273138442,0.03,202.3,202.29,4.62139343]
[1757273138854,0.03,202.3,202.29,9.56479152]
[1757273139765,0.03,202.3,202.29,24.4063578]
[1757273140637,0.03,202.3,202.29,29.02775123]
[1757273142478,0.03,202.3,202.29,58.73775123]
[1757273143338,0.74,202.3,202.29,54.1163578]
[1757273143546,0.74,202.3,202.29,24.4063578]
[1757273148250,0.74,202.3,202.29,19.78496437]
[1757273148452,0.74,202.3,202.29,24.4063578]
[1757273153947,0.74,202.3,202.29,19.46295971]
[1757273154553,0.74,202.3,202.29,24.4063578]
[1757273166549,0.03,202.3,202.29,24.4063578]
[1757273167164,13.59559401,202.26,202.25,0.12]
[1757273167478,56.93698744,202.26,202.25,0.12]
[1757273167775,68.94041858,202.26,202.25,0.12]
[1757273167951,75.86450287,202.26,202.25,0.12]
[1757273169468,51.75559401,202.26,202.25,0.12]
[1757273169660,62.37582538,202.26,202.25,0.12]
[1757273170678,38.16,202.26,202.25,0.79]
[1757273170882,38.16,202.26,202.25,5.41139343]
[1757273171182,38.16,202.26,202.25,10.3557692]
[1757273172266,38.3,202.29,202.25,10.3557692]
[1757273172470,38.3,202.29,202.26,0.67]
[1757273172858,38.3,202.29,202.27,0.67]
[1757273173889,38.3,202.29,202.25,10.3557692]
[1757273174062,38.3,202.29,202.26,0.67]
[1757273175183,38.3,202.29,202.27,0.67]
[1757273175371,0.03,202.3,202.28,4.62139343]
[1757273175573,0.03,202.3,202.29,30.62139343]
[1757273175758,0.03,202.3,202.29,26.0]
[1757273178480,0.03,202.3,202.29,26.67]
[1757273178661,0.03,202.3,202.29,36.23479152]
[1757273179381,0.03,202.3,202.29,38.21347124]
[1757273182682,6.27315865,202.3,202.29,1.97867972]
[1757273182885,63.82485272,202.3,202.25,0.12]
[1757273183178,4.62139343,202.26,202.25,0.12]
[1757273183974,5.18139343,202.26,202.25,0.12]
[1757273184167,24.61621424,202.26,202.25,0.12]
[1757273184373,19.27169407,202.26,202.25,0.12]
[1757273184886,24.21582538,202.26,202.25,0.12]
[1757273186080,62.65582538,202.26,202.25,0.12]
[1757273189279,43.06139343,202.26,202.25,0.12]
[1757273189889,38.44,202.26,202.25,0.12]
[1757273190395,43.06139343,202.26,202.25,0.12]
[1757273191884,38.44,202.26,202.25,0.12]
[1757273192092,43.06139343,202.26,202.25,0.12]
[1757273192286,41.39945833,202.26,202.25,0.12]
[1757273193104,46.90358964,202.26,202.25,0.12]
[1757273193587,60.49918365,202.26,202.25,0.12]
[1757273193788,59.93918365,202.26,202.25,0.12]
[1757273195993,60.49918365,202.26,202.25,0.12]
[1757273196498,59.93918365,202.26,202.25,0.12]
[1757273204003,60.49918365,202.26,202.25,0.12]
[1757273204302,59.93918365,202.26,202.25,0.12]
[1757273205592,60.43389028,202.26,202.25,0.12]
[1757273206089,59.93918365,202.26,202.25,0.12]
[1757273208992,54.99505234,202.26,202.25,0.12]
[1757273210503,65.77841045,202.26,202.25,0.12]
[1757273210707,72.5815691,202.26,202.25,0.12]
[1757273210888,69.62211077,202.26,202.25,0.12]
[1757273211089,72.5815691,202.26,202.25,0.12]
[1757273211288,73.07627573,202.26,202.25,0.12]
[1757273212306,13.59559401,202.25,202.22,0.12]
[1757273212498,16.55505234,202.23,202.22,0.12]
[1757273212891,17.11505234,202.23,202.22,0.12]
[1757273213090,22.95427914,202.23,202.22,0.12]
[1757273214108,27.89914389,202.23,202.22,0.12]
[1757273214324,22.05991709,202.23,202.22,0.12]
[1757273214691,21.49991709,202.23,202.22,0.12]
[1757273220696,18.54045876,202.23,202.22,0.12]
[1757273220914,59.79991709,202.23,202.22,0.82]
[1757273221820,54.85505234,202.23,202.22,0.82]
[1757273222125,38.3,202.23,202.22,0.82]
[1757273230909,38.26,202.25,202.22,3.77945833]
[1757273231213,38.26,202.25,202.24,2.95945833]
[1757273231518,38.26,202.26,202.24,3.63945833]
[1757273231716,38.26,202.26,202.25,0.68]
[1757273232220,3.48416496,202.29,202.25,0.68]
[1757273232423,38.26,202.28,202.25,8.58379962]
[1757273232724,38.26,202.28,202.26,0.68]
[1757273235409,38.26,202.28,202.26,5.62410599]
[1757273235604,38.26,202.28,202.27,0.68]
[1757273237714,38.29,202.28,202.27,0.68]
[1757273238226,38.29,202.28,202.27,5.62388688]
[1757273238525,0.03,202.28,202.27,8.58334521]
[1757273241305,0.03,202.28,202.27,10.56212282]
[1757273248612,0.03,202.28,202.27,7.60266449]
[1757273248818,0.03,202.28,202.27,48.76212282]
[1757273249936,0.03,202.28,202.27,7.60266449]
[1757273250129,0.03,202.28,202.27,10.56212282]
[1757273253536,0.03,202.28,202.27,1.97877761]
[1757273253727,0.03,202.28,202.25,3.63945833]
[1757273253927,0.03,202.28,202.27,26.0]
[1757273255127,0.03,202.28,202.27,30.94388688]
[1757273257626,0.03,202.28,202.26,5.6040679]
[1757273257826,0.03,202.28,202.26,10.22565455]
[1757273258232,0.03,202.28,202.27,0.66]
[1757273258445,0.03,202.28,202.27,5.28158665]
[1757273260049,0.03,202.28,202.27,10.22547353]
[1757273262735,0.03,202.28,202.27,12.20444694]
[1757273265642,0.03,202.28,202.27,6.60056006]
[1757273265853,5.21158665,202.28,202.24,0.12]
[1757273266053,18.21718066,202.25,202.24,2.09926717]
[1757273266358,25.01692944,202.25,202.24,0.12]
[1757273266552,30.85615624,202.25,202.24,0.12]
[1757273267437,35.80053201,202.25,202.24,0.12]
[1757273268971,23.72155643,202.25,202.24,0.12]
[1757273274060,29.00078323,202.25,202.24,0.12]
[1757273274275,35.80053201,202.25,202.24,0.12]
[1757273274563,37.78087709,202.25,202.24,0.12]
[1757273274863,35.80053201,202.25,202.24,0.12]
[1757273275263,36.29523864,202.25,202.24,0.12]
[1757273276463,30.45601184,202.25,202.24,0.12]
[1757273276652,32.43635692,202.25,202.24,0.12]
[1757273277056,38.27558372,202.25,202.24,0.12]
[1757273277258,13.59559401,202.24,202.22,0.12]
[1757273277465,56.91188729,202.23,202.22,0.12]
[1757273277670,57.47188729,202.23,202.22,0.12]
[1757273277969,68.65650082,202.23,202.22,0.12]
[1757273278266,62.41675204,202.23,202.22,0.12]
[1757273279455,61.85675204,202.23,202.22,0.12]
[1757273281055,61.85675204,202.23,202.22,0.78]
[1757273281664,61.85675204,202.23,202.22,0.12]
[1757273282971,62.41675204,202.23,202.22,0.12]
[1757273283465,61.85675204,202.23,202.22,0.12]
[1757273286964,61.85675204,202.23,202.22,0.81]
[1757273290279,38.2,202.23,202.22,0.81]
[1757273293489,43.14486475,202.23,202.22,0.81]
[1757273293689,61.85675204,202.23,202.22,0.12]
[1757273294496,23.65675204,202.23,202.22,0.12]
[1757273294676,61.36204541,202.23,202.22,0.12]
[1757273298486,61.92204541,202.23,202.22,0.12]
[1757273298688,66.54363206,202.23,202.22,0.12]
[1757273299268,23.16204541,202.23,202.22,0.12]
[1757273299885,61.36204541,202.23,202.22,0.12]
[1757273302866,61.36204541,202.23,202.22,0.81]
[1757273303073,61.36204541,202.23,202.22,0.12]
[1757273303474,61.92204541,202.23,202.22,0.12]
[1757273307492,61.36204541,202.23,202.22,0.12]
[1757273307888,56.74045876,202.23,202.22,0.12]
[1757273308107,61.36204541,202.23,202.22,0.12]
[1757273308790,64.66204541,202.23,202.22,0.12]
[1757273316079,4.62158665,202.23,202.22,0.83]
[1757273316292,41.16013784,202.23,202.22,0.83]
[1757273322101,38.2,202.23,202.22,0.83]
[1757273322307,41.16013784,202.23,202.22,0.83]
[1757273322802,38.2,202.23,202.22,0.83]
[1757273323011,41.16013784,202.23,202.22,0.83]
[1757273323180,38.2,202.23,202.22,0.83]
[1757273324997,41.16013784,202.23,202.22,0.83]
[1757273327012,46.10500259,202.23,202.22,0.83]